bitfinex-derivatives/quotes_ETHF0:USTF0_20230830
["timestamp","ask_amount","ask_price","bid_price","bid_amount"]
[1693409520901,3.81817684,1704.3,1704.2,11.46711824]
[1693409521708,3.81817684,1704.4,1704.2,11.46711824]
[1693409522907,3.81817684,1704.4,1704.3,21.23712489]
[1693409523109,7.20521221,1704.7,1704.3,21.23712489]
[1693409523110,3.81817684,1704.5,1704.3,21.23712489]
[1693409523312,3.81817684,1704.6,1704.4,8.99151824]
[1693409523516,3.81817684,1704.6,1704.5,5.288]
[1693409524011,3.81817684,1704.6,1704.5,10.8902]
[1693409526713,3.81817684,1704.7,1704.5,10.8902]
[1693409526909,3.81817684,1704.7,1704.6,8.99151824]
[1693409527110,4.28959366,1704.8,1704.6,8.99151824]
[1693409527304,3.81817684,1704.8,1704.7,5.288]
[1693409529914,3.05410212,1704.8,1704.7,5.288]
[1693409531915,3.54159919,1704.9,1704.7,5.288]
[1693409532215,3.54159919,1704.9,1704.8,8.99151824]
[1693409532519,3.54159919,1704.9,1704.8,7.55793648]
[1693409532712,3.54159919,1704.9,1704.8,8.99151824]
[1693409532914,0.48749707,1704.9,1704.8,8.99151824]
[1693409533317,2.95499919,1705.0,1704.8,11.58861824]
[1693409533512,2.95499919,1705.0,1704.9,5.288]
[1693409533912,2.95499919,1705.0,1704.9,7.6962]
[1693409535015,3.42105414,1705.0,1704.9,7.6962]
[1693409536415,0.46605495,1705.0,1704.9,10.904]
[1693409536720,6.46177684,1705.3,1704.9,10.904]
[1693409536922,14.65875472,1705.3,1705.1,5.288]
[1693409537223,14.65875472,1705.3,1705.1,6.72158176]
[1693409539024,3.2078,1705.2,1705.0,5.288]
[1693409540524,3.2078,1705.2,1705.0,6.72158176]
[1693409541727,3.2078,1705.2,1705.1,2.26993648]
[1693409542020,3.2078,1705.2,1705.1,7.55793648]
[1693409542418,3.2078,1705.2,1705.1,9.98883648]
[1693409542820,0.47093332,1705.3,1705.1,20.92447579]
[1693409543021,0.00879662,1705.4,1705.2,6.72158176]
[1693409543222,0.00879662,1705.4,1705.3,7.55793648]
[1693409546028,0.47082594,1705.4,1705.3,7.55793648]
[1693409546321,0.47082594,1705.4,1705.3,10.76573648]
[1693409546524,0.00879662,1705.4,1705.3,18.49664208]
[1693409549430,0.00879662,1705.4,1705.3,25.1724322]
[1693409549826,0.86736877,1705.9,1705.4,5.288]
[1693409550027,5.514,1706.0,1705.8,5.288]
[1693409550433,3.2078,1706.0,1705.8,5.288]
[1693409551530,8.4958,1706.0,1705.7,7.55793648]
[1693409551925,8.4958,1706.0,1705.7,5.288]
[1693409552735,8.97250033,1706.0,1705.7,5.288]
[1693409553735,9.84819444,1706.0,1705.7,5.288]
[1693409554429,3.2078,1705.8,1705.7,5.288]
[1693409554629,3.2078,1705.8,1705.7,6.72158176]
[1693409554835,3.2078,1705.8,1705.7,5.288]
[1693409556137,3.2078,1705.8,1705.7,6.72158176]
[1693409557442,3.2078,1705.8,1705.7,5.288]
[1693409557742,3.2078,1705.8,1705.6,2.26993648]
[1693409557743,8.4958,1705.8,1705.5,7.7341]
[1693409557941,8.4958,1705.8,1705.5,5.288]
[1693409559037,3.2078,1705.6,1705.5,5.288]
[1693409559236,8.4958,1705.8,1705.5,5.288]
[1693409559841,8.4958,1705.8,1705.6,1.43358176]
[1693409561845,3.2078,1705.8,1705.6,6.72158176]
[1693409565948,3.2078,1705.8,1705.7,5.288]
[1693409566344,3.68553867,1705.8,1705.7,5.288]
[1693409568154,8.97353867,1705.8,1705.5,5.288]
[1693409569444,8.97353867,1705.8,1705.6,1.43358176]
[1693409571653,8.97353867,1705.8,1705.5,10.17583648]
[1693409571858,11.25577943,1705.8,1705.5,10.17583648]
[1693409572253,19.6535268,1705.8,1705.5,10.17583648]
[1693409573757,19.6535268,1705.8,1705.5,7.9059]
[1693409573958,8.4958,1705.6,1705.2,7.7605]
[1693409574154,3.2078,1705.3,1705.2,7.7605]
[1693409575158,3.2078,1705.3,1705.0,5.29679688]
[1693409575759,3.2078,1705.1,1705.0,0.00879688]
[1693409578772,15.64294076,1705.3,1705.0,6.73037864]
[1693409579161,15.64294076,1705.3,1705.0,11.77117864]
[1693409579362,15.64294076,1705.3,1705.1,2.26993648]
[1693409579865,13.33714076,1705.3,1705.1,2.26993648]
[1693409580066,13.33714076,1705.3,1705.0,11.77117864]
[1693409580668,21.82285462,1705.3,1705.0,11.77117864]
[1693409580876,2.28224076,1705.2,1705.0,11.77117864]
[1693409581269,3.2078,1705.1,1705.0,11.77117864]
[1693409582276,3.2078,1705.1,1705.0,10.33759688]
[1693409582469,3.2078,1705.1,1705.0,11.77117864]
[1693409582669,3.2078,1705.1,1705.0,10.33759688]
[1693409582975,10.77804076,1705.1,1705.0,0.00879688]
[1693409584574,3.2078,1705.1,1705.0,5.29679688]
[1693409584881,3.2078,1705.1,1705.0,6.73037864]
[1693409586066,5.49004076,1705.1,1705.0,6.73037864]
[1693409586270,3.2078,1705.1,1705.0,6.73037864]
[1693409586769,5.49004076,1705.1,1705.0,6.73037864]
[1693409587972,2.28224076,1705.2,1705.0,6.73037864]
[1693409588374,2.28224076,1705.1,1705.0,6.73037864]
[1693409589176,5.49004076,1705.1,1705.0,6.73037864]
[1693409589670,10.77804076,1705.1,1705.0,0.00879688]
[1693409591072,8.4958,1705.1,1705.0,0.00879688]
[1693409591475,11.54155821,1705.1,1705.0,0.00879688]
[1693409592476,10.7882399,1705.1,1705.0,0.00879688]
[1693409592874,8.4958,1705.1,1705.0,0.00879688]
[1693409593075,11.54155821,1705.1,1705.0,0.00879688]
[1693409593474,11.54155821,1705.1,1704.8,2.4406]
[1693409593678,3.2078,1704.9,1704.8,2.4406]
[1693409596182,8.4958,1704.9,1704.8,2.4406]
[1693409596584,15.869,1704.7,1704.1,3.81773443]
[1693409596781,15.869,1704.7,1704.1,2.4338]
[1693409596782,8.4958,1704.2,1704.1,2.4338]
[1693409597285,8.4958,1704.2,1704.1,3.86738176]
[1693409597482,8.4958,1704.2,1704.1,2.4338]
[1693409602392,8.4958,1704.2,1704.1,3.86738176]
[1693409603993,0.00880204,1704.3,1704.1,9.15538176]
[1693409604188,0.00880204,1704.3,1704.2,7.55793648]
[1693409605690,0.47159643,1704.3,1704.2,2.26993648]
[1693409606597,0.00880204,1704.3,1704.2,10.76573648]
[1693409606892,8.4958,1704.8,1704.2,18.47682696]
[1693409607093,8.4958,1704.8,1704.5,5.288]
[1693409607288,8.4958,1704.8,1704.6,2.26993648]
[1693409607289,3.2078,1704.8,1704.6,2.26993648]
[1693409607600,3.2078,1704.8,1704.7,1.43358176]
[1693409609407,3.2078,1704.8,1704.6,4.74043648]
[1693409609998,3.2078,1704.8,1704.6,8.82321824]
[1693409615795,3.2078,1704.8,1704.6,7.38963648]
[1693409616201,3.2078,1704.8,1704.6,5.1197]
[1693409616605,3.2078,1704.8,1704.6,6.55328176]
[1693409618303,3.2078,1704.8,1704.6,5.1197]
[1693409618304,8.214,1704.7,1704.6,5.1197]
[1693409621009,9.74032698,1704.7,1704.6,2.4705]
[1693409621209,10.49992939,1704.7,1704.6,2.4705]
[1693409621606,8.214,1704.5,1704.1,3.82937633]
[1693409621922,3.81239151,1704.6,1704.3,2.5112]
[1693409622113,11.4218,1704.4,1704.3,2.5112]
[1693409625915,11.4218,1704.4,1704.3,3.94478176]
[1693409626412,11.4218,1704.4,1704.3,2.5112]
[1693409626916,11.4218,1704.4,1704.3,3.94478176]
[1693409627314,8.4888,1704.4,1704.3,2.5112]
[1693409631323,8.4888,1704.4,1704.3,3.94478176]
[1693409631510,3.2078,1704.4,1704.3,9.22578176]
[1693409635421,4.73372049,1704.4,1704.3,9.22578176]
[1693409636422,3.2078,1704.4,1704.3,9.22578176]
[1693409638217,4.73372049,1704.4,1704.3,9.22578176]
[1693409638419,3.2078,1704.4,1704.3,9.22578176]
[1693409638622,4.73372049,1704.4,1704.3,9.22578176]
[1693409639027,4.73372049,1704.4,1704.3,7.7922]
[1693409639626,10.01472049,1704.4,1704.2,4.81163648]
[1693409639824,10.77768074,1704.4,1704.3,2.5688]
[1693409641522,10.77768074,1704.4,1704.3,4.00238176]
[1693409641724,10.77768074,1704.4,1704.3,2.5688]
[1693409641921,12.3058856,1704.4,1704.3,2.5688]
[1693409642120,4.73600486,1704.4,1704.3,9.28338176]
[1693409642319,1.52820486,1704.4,1704.3,9.28338176]
[1693409645028,3.8170856,1704.4,1704.3,9.28338176]
[1693409645228,3.8170856,1704.4,1704.3,2.5688]
[1693409645229,5.49668074,1704.4,1704.3,2.5688]
[1693409645530,5.50065924,1704.4,1704.3,2.5688]
[1693409647630,3.2078,1704.4,1704.3,2.5688]
[1693409647931,5.50099539,1704.4,1704.3,4.00238176]
[1693409648828,2.29319539,1704.4,1704.3,9.28338176]
[1693409652733,2.29319539,1704.4,1704.3,2.5688]
[1693409656242,8.33814565,1704.4,1704.3,2.5688]
[1693409656437,11.54594565,1704.4,1704.3,2.5688]
[1693409658544,11.54516148,1704.4,1704.3,2.5688]
[1693409664741,8.4888,1704.4,1704.3,2.5688]
[1693409665653,8.96872018,1704.4,1704.3,2.5688]
[1693409665853,12.78917203,1704.4,1704.3,2.5688]
[1693409670261,12.78917203,1704.4,1704.3,4.00238176]
[1693409670761,12.78917203,1704.4,1704.3,2.5688]
[1693409671263,8.96872018,1704.4,1704.3,2.5688]
[1693409672763,8.96872018,1704.4,1704.3,4.00238176]
[1693409672959,8.96872018,1704.4,1704.3,2.5688]
[1693409673761,8.96872018,1704.4,1704.3,4.10638573]
[1693409673970,8.96872018,1704.4,1704.3,2.5688]
[1693409674861,8.96872018,1704.4,1704.3,4.10638573]
[1693409675160,8.96872018,1704.4,1704.3,2.5688]
[1693409675363,8.96872018,1704.4,1704.3,4.10638573]
[1693409675863,12.78917203,1704.4,1704.3,4.10638573]
[1693409676365,12.78917203,1704.4,1704.3,5.53996749]
[1693409676956,12.78917203,1704.4,1704.3,4.10638573]
[1693409677562,12.78917203,1704.4,1704.3,5.53996749]
[1693409677762,12.78917203,1704.4,1704.3,4.10638573]
[1693409678969,12.78917203,1704.4,1704.3,5.53996749]
[1693409679762,3.53994509,1704.4,1704.3,10.82096749]
[1693409680065,3.06002491,1704.4,1704.3,13.75512798]
[1693409680266,3.06002491,1704.4,1704.3,14.52392084]
[1693409680563,2.2952065,1704.4,1704.3,14.52392084]
[1693409680968,2.2952065,1704.4,1704.3,15.42534225]
[1693409681164,3.06002491,1704.5,1704.3,18.50051371]
[1693409681369,1.52994969,1704.4,1704.3,10.28535322]
[1693409681564,1.52994969,1704.4,1704.3,20.77018518]
[1693409683671,1.52994969,1704.4,1704.3,17.69501372]
[1693409684776,1.52994969,1704.4,1704.3,20.0024465]
[1693409690579,1.52994969,1704.5,1704.3,20.0024465]
[1693409690779,1.52994969,1704.5,1704.4,6.81857765]
[1693409702088,1.52994969,1704.5,1704.4,9.75235518]
[1693409702289,1.52994969,1704.6,1704.4,12.05978796]
[1693409702489,1.52994969,1704.6,1704.5,3.70351824]
[1693409702693,1.52994969,1704.6,1704.5,7.70539589]
[1693409703490,1.52994969,1704.6,1704.5,6.16781824]
[1693409704191,1.52994969,1704.6,1704.5,7.70539589]
[1693409704596,1.52115256,1704.6,1704.5,26.66000853]
[1693409704796,3.06002491,1704.9,1704.5,27.42986366]
[1693409704996,2.47332491,1704.9,1704.7,5.281]
[1693409705297,2.93568292,1704.9,1704.8,1.43358176]
[1693409710398,0.46235801,1704.9,1704.8,1.43358176]
[1693409710594,8.4888,1705.0,1704.8,1.43358176]
[1693409711189,5.85395185,1705.1,1704.8,1.43358176]
[1693409711190,11.13495185,1705.1,1704.8,6.71458176]
[1693409711392,7.3145,1705.1,1704.9,5.0813]
[1693409711695,5.281,1705.1,1705.0,3.70351824]
[1693409712495,5.7405484,1705.1,1705.0,3.70351824]
[1693409713996,0.4595484,1705.1,1705.0,8.98451824]
[1693409714295,11.50935185,1705.3,1705.0,8.98451824]
[1693409714494,7.6889,1705.3,1705.0,8.98451824]
[1693409714695,5.281,1705.3,1705.0,8.98451824]
[1693409715100,7.02825185,1705.4,1705.1,5.281]
[1693409715101,12.30925185,1705.4,1705.1,5.281]
[1693409715301,12.30925185,1705.4,1705.2,3.70351824]
[1693409715603,12.30925185,1705.4,1705.2,8.78811824]
[1693409715997,12.311877,1705.4,1705.2,8.78811824]
[1693409716494,8.4888,1705.4,1705.2,8.78811824]
[1693409717093,3.2078,1705.4,1705.2,14.06911824]
[1693409717390,5.281,1705.6,1705.2,14.06911824]
[1693409717391,12.311877,1705.6,1705.2,14.06911824]
[1693409717591,8.4888,1705.6,1705.2,14.06911824]
[1693409717996,3.2078,1705.6,1705.4,5.281]
[1693409718199,3.2078,1705.6,1705.5,1.43358176]
[1693409718398,3.2078,1705.6,1705.5,6.52218176]
[1693409718799,3.6851451,1705.6,1705.5,6.52218176]
[1693409720003,8.9661451,1705.6,1705.5,6.52218176]
[1693409720503,8.9661451,1705.6,1705.5,2.6119]
[1693409721010,8.9661451,1705.6,1705.5,4.04548176]
[1693409721202,8.9661451,1705.6,1705.5,2.6119]
[1693409721398,8.9661451,1705.6,1705.2,7.9086]
[1693409721602,5.281,1705.3,1705.1,2.5689]
[1693409721801,8.4888,1705.2,1705.0,2.6276]
[1693409722000,8.4888,1705.2,1705.0,4.06118176]
[1693409723207,5.281,1705.1,1705.0,4.06118176]
[1693409723708,5.281,1705.1,1704.8,3.06613436]
[1693409724006,3.2078,1705.0,1704.8,5.70013436]
[1693409724210,3.2078,1705.0,1704.8,7.13371612]
[1693409724507,3.2078,1705.0,1704.8,6.66078176]
[1693409724710,5.281,1704.9,1704.8,6.66078176]
[1693409725302,8.4888,1705.0,1704.8,6.66078176]
[1693409725706,8.4888,1705.0,1704.8,5.2272]
[1693409727510,8.4888,1705.0,1704.7,5.74707316]
[1693409727706,8.4888,1704.8,1704.7,0.46607316]
[1693409728007,8.4888,1704.8,1704.5,12.24854382]
[1693409728206,8.4888,1704.8,1704.6,1.43358176]
[1693409728601,8.4888,1704.8,1704.5,12.24854382]
[1693409728809,8.4888,1704.8,1704.5,10.71401977]
[1693409729910,8.4888,1704.8,1704.6,1.43358176]
[1693409734716,8.4888,1704.8,1704.5,10.72281897]
[1693409734917,3.2078,1704.6,1704.5,10.72281897]
[1693409735114,8.4888,1704.6,1704.5,5.44181897]
[1693409735310,8.4888,1704.6,1704.5,4.9695992]
[1693409737014,8.4888,1704.6,1704.5,6.40318096]
[1693409738107,8.4888,1704.6,1704.5,4.9695992]
[1693409739315,8.4888,1704.6,1704.5,6.40318096]
[1693409740921,3.2078,1704.6,1704.5,6.40318096]
[1693409741514,11.26414806,1704.8,1704.5,6.40318096]
[1693409741920,11.26410188,1704.8,1704.5,6.40318096]
[1693409743411,11.26410188,1704.8,1704.6,7.55093648]
[1693409743412,5.98310188,1704.8,1704.6,7.55093648]
[1693409743621,5.50911996,1704.8,1704.7,1.43358176]
[1693409744919,2.30131996,1704.8,1704.7,1.43358176]
[1693409745725,7.59111916,1704.9,1704.7,1.43358176]
[1693409746327,7.59111916,1704.9,1704.8,5.0555]
[1693409748022,8.35822581,1704.9,1704.8,5.0555]
[1693409748524,5.2897992,1704.9,1704.8,5.0555]
[1693409748726,7.5914555,1704.9,1704.8,7.32543648]
[1693409749532,7.5914555,1704.9,1704.8,5.0555]
[1693409749733,5.2897992,1704.9,1704.8,5.0555]
[1693409749932,8.35822581,1704.9,1704.8,5.0555]
[1693409750630,7.5915064,1704.9,1704.8,5.0555]
[1693409750830,2.3105064,1704.9,1704.8,5.0555]
[1693409753940,0.0087992,1704.9,1704.8,10.3365]
[1693409763745,0.0087992,1704.9,1704.8,18.03882219]
[1693409764544,0.0087992,1704.9,1704.8,19.56882883]
[1693409765049,0.0087992,1704.9,1704.8,18.03882219]
[1693409765246,0.0087992,1704.9,1704.8,18.51000948]
[1693409766742,0.0087992,1704.9,1704.8,20.04001612]
[1693409768846,0.0087992,1704.9,1704.8,25.32101612]
[1693409769050,2.30126009,1705.1,1704.9,3.70351824]
[1693409769352,2.30126009,1705.1,1705.0,12.77288258]
[1693409769547,2.30126009,1705.1,1705.0,14.20646434]
[1693409771743,2.30126009,1705.2,1705.0,14.20646434]
[1693409771945,2.30126009,1705.2,1705.1,7.55093648]
[1693409772145,2.30150544,1705.2,1705.1,12.58683648]
[1693409773548,2.30164807,1705.2,1705.1,12.58683648]
[1693409779856,2.30164807,1705.3,1705.1,23.49228109]
[1693409780054,2.30164807,1705.3,1705.2,6.71458176]
[1693409780757,5.50944807,1705.4,1705.2,6.71458176]
[1693409780960,5.50944807,1705.4,1705.3,5.281]
[1693409781760,3.2078,1705.4,1705.3,5.281]
[1693409781961,5.50953299,1705.4,1705.3,5.281]
[1693409783156,2.30173299,1705.4,1705.3,5.281]
[1693409785867,2.30173299,1705.4,1705.3,13.03716404]
[1693409786667,2.30173299,1705.4,1705.3,5.281]
[1693409792567,5.50953299,1705.4,1705.3,12.99823918]
[1693409792764,5.50953299,1705.4,1705.3,5.281]
[1693409793859,5.50953299,1705.4,1705.2,5.281]
[1693409794059,2.30173299,1705.3,1705.1,10.78314945]
[1693409795072,2.30173299,1705.3,1705.1,8.24764945]
[1693409795267,2.30173299,1705.3,1705.1,10.79814945]
[1693409795968,2.30173299,1705.3,1705.2,1.43358176]
[1693409796365,2.30173299,1705.3,1705.2,8.98451824]
[1693409797263,2.30173299,1705.3,1705.2,16.53015485]
[1693409799771,3.2078,1705.4,1705.2,16.53015485]
[1693409799970,2.30422475,1705.3,1705.2,16.53015485]
[1693409800472,3.07229967,1705.3,1705.2,16.53015485]
[1693409801864,2.30442996,1705.3,1705.2,16.53015485]
[1693409802270,3.07229967,1705.3,1705.2,16.53015485]
[1693409803873,3.07229967,1705.3,1705.2,12.82663661]
[1693409804265,3.07229967,1705.3,1705.2,14.26021837]
[1693409804468,3.07229967,1705.3,1705.2,12.82663661]
[1693409806173,3.07229967,1705.3,1705.2,5.281]
[1693409807076,2.30447328,1705.3,1705.2,16.04583686]
[1693409807280,2.30447328,1705.3,1705.2,18.97838866]
[1693409807480,7.04817459,1705.6,1705.2,18.97838866]
[1693409807481,3.2078,1705.6,1705.2,14.5103266]
[1693409807779,7.04913981,1705.6,1705.5,5.281]
[1693409807975,7.04913981,1705.6,1705.5,6.71458176]
[1693409809176,7.04835045,1705.6,1705.5,6.71458176]
[1693409809576,3.2078,1705.6,1705.5,6.71458176]
[1693409810176,3.84104853,1705.6,1705.5,6.71458176]
[1693409811576,0.47771136,1705.7,1705.5,6.71458176]
[1693409811776,16.28519764,1705.8,1705.5,6.71458176]
[1693409811977,16.28519764,1705.8,1705.6,5.281]
[1693409812985,16.74825257,1705.8,1705.6,5.281]
[1693409813179,16.74825257,1705.8,1705.7,7.55093648]
[1693409813384,12.1386448,1705.8,1705.7,7.55093648]
[1693409813588,3.67085493,1705.8,1705.7,10.04733648]
[1693409815375,3.67085493,1705.8,1705.7,12.59373648]
[1693409816284,0.46305493,1705.8,1705.7,12.59373648]
[1693409816482,13.07739764,1705.9,1705.7,12.59373648]
[1693409816689,13.07739764,1705.9,1705.8,1.43358176]
[1693409816690,8.46778987,1705.9,1705.8,1.43358176]
[1693409816986,18.79489764,1706.0,1705.8,1.43358176]
[1693409817191,16.28519764,1706.0,1705.8,1.43358176]
[1693409817587,4.60960777,1705.9,1705.8,1.43358176]
[1693409817786,16.28519764,1706.0,1705.8,1.43358176]
[1693409818782,4.60960777,1705.9,1705.8,1.43358176]
[1693409818987,16.75083861,1706.0,1705.8,1.43358176]
[1693409820293,16.75083861,1706.0,1705.7,12.59373648]
[1693409820499,13.54303861,1706.0,1705.8,1.43358176]
[1693409820697,3.2078,1705.9,1705.8,1.43358176]
[1693409821092,3.2078,1705.9,1705.7,12.59373648]
[1693409821286,3.2078,1705.9,1705.7,14.02731824]
[1693409821496,7.81740777,1705.9,1705.7,14.02731824]
[1693409821897,3.2078,1705.9,1705.7,14.02731824]
[1693409822096,7.81740777,1705.9,1705.7,14.02731824]
[1693409822486,3.2078,1705.9,1705.8,5.281]
[1693409822891,7.81575653,1705.9,1705.8,5.281]
[1693409823193,13.09675653,1705.9,1705.6,0.00879353]
[1693409823395,3.2078,1705.7,1705.6,0.00879353]
[1693409825409,3.2078,1705.7,1705.6,1.44237529]
[1693409826606,3.2078,1705.7,1705.6,0.00879353]
[1693409828804,8.46778987,1705.8,1705.6,9.23057312]
[1693409829005,5.85038378,1706.0,1705.8,5.281]
[1693409829006,6.14489397,1705.9,1705.8,5.281]
[1693409829310,9.60097541,1705.9,1705.8,22.09264558]
[1693409829517,4.33765737,1705.9,1705.8,23.62479425]
[1693409829706,1.64130031,1706.0,1705.8,23.62479425]
[1693409829915,1.64130031,1706.0,1705.9,8.4888]
[1693409830207,3.07140913,1706.1,1705.9,28.89622801]
[1693409830406,1.53437128,1706.1,1706.0,8.98451824]
[1693409830604,1.53437128,1706.1,1706.0,11.38891824]
[1693409831013,0.94817128,1706.1,1706.0,11.38891824]
[1693409831212,0.94817128,1706.1,1706.0,19.00852458]
[1693409831414,11.25577637,1706.3,1706.0,19.00852458]
[1693409831708,10.66967637,1706.3,1706.2,5.281]
[1693409831902,10.66967637,1706.3,1706.2,8.98451824]
[1693409833408,10.66967637,1706.3,1706.2,7.55093648]
[1693409833807,10.66967637,1706.3,1706.2,8.98451824]
[1693409834205,10.66967637,1706.3,1706.2,16.62808094]
[1693409835124,10.08357637,1706.3,1706.2,16.62808094]
[1693409835611,9.49747637,1706.3,1706.2,16.62808094]
[1693409836414,8.91137637,1706.3,1706.2,16.62808094]
[1693409836808,8.32527637,1706.3,1706.2,16.62808094]
[1693409837314,7.73917637,1706.3,1706.2,16.62808094]
[1693409837511,7.15307637,1706.3,1706.2,16.62808094]
[1693409838104,6.56697637,1706.3,1706.2,16.62808094]
[1693409838308,6.56697637,1706.3,1706.2,27.88298312]
[1693409838508,5.98087637,1706.3,1706.2,27.88298312]
[1693409838910,5.39477637,1706.3,1706.2,27.88298312]
[1693409839309,4.80867637,1706.3,1706.2,27.88298312]
[1693409839707,4.22257637,1706.3,1706.2,27.88298312]
[1693409840106,3.63647637,1706.3,1706.2,27.88298312]
[1693409840515,3.05037637,1706.3,1706.2,27.88298312]
[1693409841109,2.46427637,1706.3,1706.2,27.88298312]
[1693409841510,1.87817637,1706.3,1706.2,27.88298312]
[1693409841913,1.29207637,1706.3,1706.2,27.88298312]
[1693409842710,0.70597637,1706.3,1706.2,27.88298312]
[1693409843112,0.11987637,1706.3,1706.2,27.88298312]
[1693409844017,0.00558199,1706.4,1706.3,5.281]
[1693409844319,0.00558199,1706.4,1706.3,34.30185386]
[1693409844914,3.07140913,1707.2,1706.5,3.01400309]
[1693409845119,6.27920913,1707.5,1707.1,5.281]
[1693409845314,2.6218,1707.5,1707.4,5.281]
[1693409845508,2.6218,1707.5,1707.4,6.71458176]
[1693409845714,2.6218,1707.5,1707.4,5.281]
[1693409846513,0.46247083,1707.6,1707.4,23.24470711]
[1693409846719,3.2078,1707.8,1707.5,5.281]
[1693409847020,3.2078,1707.8,1707.7,5.281]
[1693409847515,3.2078,1707.8,1707.7,7.55093648]
[1693409848219,3.2078,1707.8,1707.7,15.05374316]
[1693409848413,3.2078,1707.8,1707.7,7.55093648]
[1693409848910,0.46533109,1707.9,1707.7,15.24883701]
[1693409849221,3.2078,1708.2,1707.8,6.71458176]
[1693409849407,0.5841,1708.6,1707.8,6.71458176]
[1693409849408,6.84559637,1708.6,1708.1,5.281]
[1693409849610,3.2078,1708.6,1708.5,5.281]
[1693409849922,3.2078,1708.6,1708.5,6.71458176]
[1693409850115,3.81712047,1709.0,1708.5,6.71458176]
[1693409850116,3.2078,1708.8,1708.5,6.71458176]
[1693409850417,3.92756807,1709.0,1708.5,12.94015581]
[1693409850617,8.4888,1708.6,1708.3,5.281]
[1693409850816,3.2078,1708.4,1708.3,5.281]
[1693409851021,8.4888,1708.4,1708.1,5.281]
[1693409851214,3.2078,1708.2,1708.1,5.281]
[1693409851617,3.2078,1708.2,1707.8,5.281]
[1693409851815,13.0,1708.4,1707.7,5.281]
[1693409851816,3.2078,1707.9,1707.7,5.281]
[1693409852219,3.2078,1707.9,1707.4,5.281]
[1693409852518,3.2078,1707.7,1707.5,8.201]
[1693409853321,11.4088,1707.7,1707.3,8.201]
[1693409853513,3.2078,1707.5,1707.3,8.201]
[1693409853715,3.2078,1707.5,1707.4,9.63458176]
[1693409853923,3.2078,1707.7,1707.4,17.15960506]
[1693409854127,3.2078,1707.7,1707.6,8.201]
[1693409854420,3.2078,1707.9,1707.6,9.63458176]
[1693409854619,3.2078,1707.7,1707.6,9.63458176]
[1693409854813,3.2078,1707.9,1707.6,9.63458176]
[1693409855216,3.2078,1707.9,1707.8,8.201]
[1693409855925,11.4088,1707.9,1707.2,2.4426]
[1693409856122,3.2078,1707.6,1707.5,8.201]
[1693409856321,3.2078,1707.6,1707.3,8.201]
[1693409856622,3.2078,1707.4,1707.3,8.201]
[1693409856920,3.2078,1707.4,1707.3,9.63458176]
[1693409857723,3.2078,1707.4,1707.3,8.201]
[1693409858125,3.2078,1707.4,1707.3,9.63458176]
[1693409858423,8.201,1707.7,1707.3,9.63458176]
[1693409858424,3.2078,1707.7,1707.3,9.63458176]
[1693409858721,3.2078,1707.7,1707.6,8.201]
[1693409858916,3.2078,1707.7,1707.6,9.63458176]
[1693409859524,8.201,1708.0,1707.6,9.63458176]
[1693409859525,3.2078,1707.9,1707.6,9.63458176]
[1693409859718,3.68383537,1707.9,1707.6,11.90451824]
[1693409859917,3.68383537,1707.9,1707.8,8.201]
[1693409860120,3.68383537,1707.9,1707.8,9.63458176]
[1693409860519,3.68383537,1707.9,1707.8,8.201]
[1693409860719,3.09813537,1707.9,1707.8,8.201]
[1693409861731,3.09813537,1707.9,1707.3,8.201]
[1693409861732,3.09813537,1707.9,1707.6,8.201]
[1693409861929,3.2078,1707.7,1707.6,10.47093648]
[1693409862228,3.68383537,1707.9,1707.6,10.47093648]
[1693409862827,3.68383537,1707.9,1707.7,1.43358176]
[1693409863224,11.88483537,1707.9,1707.5,8.201]
[1693409863429,3.2078,1707.7,1707.6,8.201]
[1693409863631,3.2078,1707.7,1707.6,9.63458176]
[1693409863825,3.68383537,1707.9,1707.6,9.63458176]
[1693409864032,3.2078,1707.9,1707.7,2.26993648]
[1693409864232,3.2078,1707.9,1707.8,9.63458176]
[1693409864533,3.2078,1707.9,1707.8,8.201]
[1693409864733,3.2078,1707.9,1707.6,8.201]
[1693409866126,3.2078,1707.9,1707.7,1.43358176]
[1693409866333,3.2078,1707.9,1707.8,8.201]
[1693409867034,3.2078,1707.9,1707.8,10.47093648]
[1693409867541,3.2078,1707.9,1707.6,8.201]
[1693409869438,3.2078,1707.9,1707.7,1.43358176]
[1693409871039,3.2078,1707.9,1707.6,10.47093648]
[1693409871538,3.2078,1707.9,1707.6,8.201]
[1693409872530,3.2078,1707.9,1707.7,1.43358176]
[1693409873340,3.2078,1707.9,1707.6,8.201]
[1693409874442,3.2078,1707.7,1707.6,8.201]
[1693409875939,3.2078,1707.7,1707.6,9.63458176]
[1693409876342,3.2078,1707.7,1707.6,8.201]
[1693409876944,3.2078,1707.7,1707.6,9.63458176]
[1693409879045,3.2078,1707.7,1707.6,8.201]
[1693409879843,3.2078,1707.7,1707.6,9.63458176]
[1693409883254,3.2078,1707.7,1707.5,10.7623]
[1693409883848,3.2078,1707.7,1707.5,14.46581824]
[1693409884155,3.2078,1707.7,1707.6,8.201]
[1693409884349,3.2078,1707.7,1707.6,19.44850008]
[1693409884549,0.47934387,1707.9,1707.6,27.02379633]
[1693409884749,11.88407952,1708.1,1707.7,23.15201832]
[1693409884954,11.88407952,1708.1,1707.7,11.90451824]
[1693409885156,11.88407952,1708.1,1707.8,2.461]
[1693409885357,11.88407952,1708.1,1707.8,13.7073077]
[1693409885649,3.2078,1707.9,1707.8,2.461]
[1693409887553,3.52442479,1708.1,1707.8,23.34259022]
[1693409887554,3.68307952,1708.1,1707.8,23.34259022]
[1693409887756,3.68307952,1708.1,1707.9,11.24700846]
[1693409888258,3.68307952,1708.1,1708.0,1.43358176]
[1693409888463,3.2078,1708.1,1708.0,12.68059022]
[1693409890359,6.25694527,1708.1,1708.0,12.68059022]
[1693409890564,2.3001769,1708.1,1708.0,12.68059022]
[1693409890752,2.3001769,1708.1,1708.0,20.88159022]
[1693409891358,2.3001769,1708.1,1708.0,12.68059022]
[1693409892055,2.3001769,1708.1,1708.0,20.88159022]
[1693409893259,0.89454993,1708.1,1708.0,20.88159022]
[1693409893756,6.25694527,1708.3,1708.0,20.88159022]
[1693409893953,5.46556279,1708.6,1708.3,16.402]
[1693409893954,3.04914527,1708.5,1708.3,16.402]
[1693409894158,3.06563602,1708.6,1708.4,20.88159022]
[1693409894461,3.06563602,1708.6,1708.5,21.71794494]
[1693409894853,6.27343602,1708.6,1708.5,21.71794494]